[Event "Cracovia Chess Festival A 2021"]
[Site "Cracow"]
[Date "2022.01.03"]
[Round "8.12"]
[White "Dzida, Kamil"]
[Black "Lewtak, Damian"]
[Result "0-1"]
[ECO "B15"]
[WhiteElo "2238"]
[BlackElo "2383"]
[Annotator "ChessBase"]
[PlyCount "120"]
[EventDate "2021.12.27"]
[EventCountry "POL"]
[SourceTitle "playchess.com"]
[Source "ChessBase"]
[SourceQuality "1"]
[TimeControl "40/5400+30:1800+30"]

1. e4 {[%emt 0:00:03]} c6 {[%emt 0:00:45]} 2. d4 {[%emt 0:00:15]} d5 {[%emt 0:00:06]} 3. Nc3 {[%emt 0:00:05]} g6 {[%emt 0:00:15]} 4. h3 {[%emt 0:00:51]} dxe4 {[%emt 0:00:56]} 5. Nxe4 {[%emt 0:00:08]} Bg7 {[%emt 0:00:07]} 6. c3 {[%emt 0:03:09]} Nd7 {[%emt 0:03:11]} 7. Bd3 {[%emt 0:02:02]} Ngf6 {[%emt 0:00:21]} 8. Nf3 {[%emt 0:03:55]} Nxe4 {[%emt 0:01:22]} 9. Bxe4 {[%emt 0:00:04]} O-O {[%emt 0:00:05]} 10. O-O {[%emt 0:00:36]} e5 {[%emt 0:00:44]} 11. dxe5 {[%emt 0:08:12]} Nxe5 {[%emt 0:00:07]} 12. Nxe5 {[%emt 0:22:47]} Bxe5 {[%emt 0:00:08]} 13. Bh6 {[%emt 0:01:06]} Re8 {[%emt 0:01:25]} 14. Qxd8 {[%emt 0:00:25]} Rxd8 {[%emt 0:00:06]} 15. Rfe1 {[%emt 0:00:10]} Bf6 {[%emt 0:07:11]} 16. Rad1 {[%emt 0:07:35]} Be6 {[%emt 0:00:46]} 17. Bb1 {[%emt 0:00:50]} a5 {[%emt 0:01:44]} 18. Bc2 {[%emt 0:07:51]} Bxa2 {[%emt 0:18:01]} 19. Rxd8+ {[%emt 0:00:36]} Rxd8 {[%emt 0:00:05]} 20. Ra1 {[%emt 0:00:07]} Bc4 {[%emt 0:00:07]} 21. Rxa5 {[%emt 0:00:44]} Bg7 {[%emt 0:01:00]} 22. Be3 {[%emt 0:01:13]} h5 {[%emt 0:00:47]} 23. h4 {[%emt 0:05:46]} Bf6 {[%emt 0:10:40]} 24. g3 {[%emt 0:01:26]} Bd5 {[%emt 0:00:50]} 25. Bd1 {[%emt 0:00:26]} b5 {[%emt 0:01:07]} 26. Be2 {[%emt 0:02:46]} Rb8 {[%emt 0:02:21]} 27. Bc5 {[%emt 0:08:35]} Kg7 {[%emt 0:01:56]} 28. f3 {[%emt 0:01:34]} Rd8 {[%emt 0:08:14]} 29. Kf2 {[%emt 0:02:51]} Be6 {[%emt 0:03:06]} 30. Be3 {[%emt 0:00:49]} Re8 {[%emt 0:02:54]} 31. Ra1 {[%emt 0:02:25]} Bd5 {[%emt 0:00:30]} 32. Rd1 {[%emt 0:00:13]} Rb8 {[%emt 0:02:44]} 33. Bd4 {[%emt 0:00:44]} b4 {[%emt 0:00:57]} 34. Bxf6+ {[%emt 0:06:10]} Kxf6 {[%emt 0:00:07]} 35. Rd4 {[%emt 0:00:26]} bxc3 {[%emt 0:01:34]} 36. bxc3 {[%emt 0:00:03]} Ke5 {[%emt 0:04:56]} 37. Ke3 {[%emt 0:03:37]} Rb3 {[%emt 0:01:17]} 38. Kd2 {[%emt 0:00:57]} Rb1 {[%emt 0:02:38]} 39. g4 {[%emt 0:01:42]} hxg4 {[%emt 0:02:06]} 40. fxg4 {[%emt 0:00:00]} f5 {[%emt 0:00:00]} 41. h5 {[%emt 0:08:06]} gxh5 {[%emt 0:02:23]} 42. gxh5 {[%emt 0:04:12]} Rh1 {[%emt 0:00:10]} 43. Rb4 {[%emt 0:04:24]} Rh2 {[%emt 0:05:55]} 44. Ke1 {[%emt 0:01:38]} Be4 {[%emt 0:04:04]} 45. Rb8 {[%emt 0:02:04]} Kf4 {[%emt 0:04:07]} 46. Rg8 {[%emt 0:00:05]} Bd5 {[%emt 0:00:06]} 47. Rg7 {[%emt 0:01:43]} Ke3 {[%emt 0:02:13]} 48. Rg3+ {[%emt 0:00:05]} Ke4 {[%emt 0:00:06]} 49. Rg6 {[%emt 0:04:02]} c5 {[%emt 0:11:02]} 50. Rg7 {[%emt 0:05:01]} Ke3 {[%emt 0:05:04]} 51. Rg3+ {[%emt 0:00:10]} Kf4 {[%emt 0:00:04]} 52. Rg7 {[%emt 0:01:27]} c4 {[%emt 0:02:06]} 53. Rd7 {[%emt 0:01:30]} Be4 {[%emt 0:04:47]} 54. Rg7 {[%emt 0:00:03]} Bf3 {[%emt 0:02:14]} 55. Bxc4 {[%emt 0:09:13]} Ke3 {[%emt 0:00:57]} 56. Kf1 {[%emt 0:00:03]} Rh1+ {[%emt 0:01:16]} 57. Rg1 {[%emt 0:00:04]} Rxh5 {[%emt 0:00:58]} 58. Rg7 {[%emt 0:00:40]} Rh1+ {[%emt 0:00:08]} 59. Rg1 {[%emt 0:00:03]} Rh4 {[%emt 0:00:47]} 60. Bb5 {[%emt 0:00:55]} Rh2 {[%emt 0:00:45]} 0-1

[Event "Cracovia Chess Festival A 2021"]
[Site "Cracow"]
[Date "2022.01.03"]
[Round "8.13"]
[White "Vardanyan, Aras"]
[Black "Karolczuk, Iwo"]
[Result "1/2-1/2"]
[ECO "E70"]
[WhiteElo "2222"]
[BlackElo "2357"]
[Annotator "ChessBase"]
[PlyCount "111"]
[EventDate "2021.12.27"]
[EventCountry "POL"]
[SourceTitle "playchess.com"]
[Source "ChessBase"]
[SourceQuality "1"]
[TimeControl "40/5400+30:1800+30"]

1. d4 {[%emt 0:00:04]} Nf6 {[%emt 0:00:19]} 2. c4 {[%emt 0:00:06]} g6 {[%emt 0:00:17]} 3. Nc3 {[%emt 0:00:07]} Bg7 {[%emt 0:00:06]} 4. e4 {[%emt 0:00:03]} O-O {[%emt 0:01:40]} 5. h3 {[%emt 0:01:14]} c6 {[%emt 0:04:29]} 6. Nf3 {[%emt 0:01:31]} d5 {[%emt 0:00:12]} 7. e5 {[%emt 0:00:05]} Ne4 {[%emt 0:00:05]} 8. Bd3 {[%emt 0:00:04]} Nxc3 {[%emt 0:06:21]} 9. bxc3 {[%emt 0:00:07]} dxc4 {[%emt 0:00:04]} 10. Bxc4 {[%emt 0:00:05]} c5 {[%emt 0:00:30]} 11. O-O {[%emt 0:00:06]} Nc6 {[%emt 0:01:10]} 12. Ba3 {[%emt 0:00:40]} cxd4 {[%emt 0:01:55]} 13. cxd4 {[%emt 0:00:06]} Na5 {[%emt 0:23:17]} 14. Bd3 {[%emt 0:06:11]} Be6 {[%emt 0:03:13]} 15. Qe2 {[%emt 0:03:19]} Nc6 {[%emt 0:08:00]} 16. Qe3 {[%emt 0:18:49]} Bd5 {[%emt 0:02:20]} 17. Be4 {[%emt 0:05:10]} f5 {[%emt 0:07:53]} 18. Bxd5+ {[%emt 0:03:50]} Qxd5 {[%emt 0:00:09]} 19. Rfc1 {[%emt 0:03:31]} f4 {[%emt 0:13:19]} 20. Qd2 {[%emt 0:08:00]} Rad8 {[%emt 0:02:54]} 21. Rxc6 {[%emt 0:05:52]} bxc6 {[%emt 0:02:42]} 22. Bxe7 {[%emt 0:06:03]} Bxe5 {[%emt 0:01:36]} 23. Bxf8 {[%emt 0:04:04]} Kxf8 {[%emt 0:00:24]} 24. Rd1 {[%emt 0:02:58]} Bd6 {[%emt 0:01:30]} 25. Qe2 {[%emt 0:01:21]} Re8 {[%emt 0:02:03]} 26. Qc2 {[%emt 0:02:34]} Rc8 {[%emt 0:01:37]} 27. h4 {[%emt 0:01:04]} Kg7 {[%emt 0:01:24]} 28. Rc1 {[%emt 0:01:02]} Rc7 {[%emt 0:00:59]} 29. a4 {[%emt 0:01:29]} c5 {[%emt 0:01:57]} 30. dxc5 {[%emt 0:05:29]} Rxc5 {[%emt 0:00:20]} 31. Qb2+ {[%emt 0:01:52]} Be5 {[%emt 0:00:10]} 32. Qb1 {[%emt 0:00:19]} Rxc1+ {[%emt 0:00:42]} 33. Qxc1 {[%emt 0:00:14]} h6 {[%emt 0:02:35]} 34. Qc8 {[%emt 0:00:45]} a5 {[%emt 0:01:42]} 35. h5 {[%emt 0:01:11]} Bd6 {[%emt 0:04:26]} 36. Qd7+ {[%emt 0:04:07]} Kf6 {[%emt 0:00:28]} 37. Qd8+ {[%emt 0:00:45]} Kg7 {[%emt 0:00:08]} 38. hxg6 {[%emt 0:00:52]} Kxg6 {[%emt 0:00:17]} 39. Qd7 {[%emt 0:00:38]} Qd1+ {[%emt 0:02:47]} 40. Kh2 {[%emt 0:00:00]} Qd5 {[%emt 0:00:00]} 41. Nh4+ {[%emt 0:03:40]} Kf6 {[%emt 0:04:11]} 42. Qd8+ {[%emt 0:02:20]} Kf7 {[%emt 0:05:36]} 43. Qd7+ {[%emt 0:02:44]} Kf6 {[%emt 0:00:10]} 44. Qe8 {[%emt 0:01:03]} Qg5 {[%emt 0:01:40]} 45. Qh8+ {[%emt 0:00:49]} Ke6 {[%emt 0:01:21]} 46. Qc8+ {[%emt 0:00:59]} Kd5 {[%emt 0:03:07]} 47. Nf3 {[%emt 0:00:41]} Qh5+ {[%emt 0:00:25]} 48. Kg1 {[%emt 0:00:06]} Bb4 {[%emt 0:01:10]} 49. Qb8 {[%emt 0:02:16]} Qf7 {[%emt 0:13:16]} 50. Qb5+ {[%emt 0:02:17]} Kd6 {[%emt 0:02:28]} 51. Qb6+ {[%emt 0:00:47]} Kd5 {[%emt 0:00:54]} 52. Qxh6 {[%emt 0:01:57]} Qf5 {[%emt 0:00:50]} 53. Qh8 {[%emt 0:01:39]} Kc4 {[%emt 0:02:05]} 54. Qd4+ {[%emt 0:02:47]} Kb3 {[%emt 0:00:11]} 55. Qa1 {[%emt 0:06:16]} Bc3 {[%emt 0:00:43]} 56. Nd4+ {[%emt 0:00:34]} 1/2-1/2

[Event "Cracovia Chess Festival A 2021"]
[Site "Cracow"]
[Date "2022.01.03"]
[Round "8.14"]
[White "Danielyan, Vahe"]
[Black "Luczak, Filip"]
[Result "1-0"]
[ECO "C16"]
[WhiteElo "2332"]
[BlackElo "2273"]
[Annotator "ChessBase"]
[PlyCount "99"]
[EventDate "2021.12.27"]
[EventCountry "POL"]
[SourceTitle "playchess.com"]
[Source "ChessBase"]
[SourceQuality "1"]
[TimeControl "40/5400+30:1800+30"]

1. e4 {[%emt 0:00:07]} e6 {[%emt 0:01:39]} 2. d4 {[%emt 0:00:14]} d5 {[%emt 0:00:03]} 3. Nc3 {[%emt 0:00:06]} Bb4 {[%emt 0:00:04]} 4. e5 {[%emt 0:00:03]} Qd7 {[%emt 0:00:04]} 5. a3 {[%emt 0:00:08]} Bxc3+ {[%emt 0:00:16]} 6. bxc3 {[%emt 0:00:05]} b6 {[%emt 0:00:07]} 7. Nf3 {[%emt 0:00:07]} Ba6 {[%emt 0:06:35]} 8. Bxa6 {[%emt 0:00:04]} Nxa6 {[%emt 0:00:01]} 9. a4 {[%emt 0:00:04]} Nb8 {[%emt 0:07:36]} 10. O-O {[%emt 0:00:26]} Nc6 {[%emt 0:00:57]} 11. Ba3 {[%emt 0:00:01]} Na5 {[%emt 0:03:39]} 12. Nd2 {[%emt 0:00:02]} Nh6 {[%emt 0:04:38]} 13. f4 {[%emt 0:02:05]} Nf5 {[%emt 0:04:29]} 14. Qe2 {[%emt 0:01:28]} h5 {[%emt 0:03:05]} 15. Bb4 {[%emt 0:12:07]} Nc6 {[%emt 0:10:56]} 16. Ba3 {[%emt 0:00:02]} Na5 {[%emt 0:01:11]} 17. Rfb1 {[%emt 0:00:15]} Qc6 {[%emt 0:06:02]} 18. Bb4 {[%emt 0:03:16]} Nc4 {[%emt 0:04:05]} 19. Nxc4 {[%emt 0:00:04]} dxc4 {[%emt 0:00:10]} 20. a5 {[%emt 0:01:27]} b5 {[%emt 0:03:55]} 21. a6 {[%emt 0:01:45]} Qd5 {[%emt 0:04:30]} 22. Kf2 {[%emt 0:04:21]} c6 {[%emt 0:02:04]} 23. Bc5 {[%emt 0:02:47]} Kd7 {[%emt 0:04:10]} 24. g3 {[%emt 0:02:05]} Kc7 {[%emt 0:11:26]} 25. Rg1 {[%emt 0:01:24]} g6 {[%emt 0:01:15]} 26. Qf3 {[%emt 0:06:10]} Qxf3+ {[%emt 0:00:24]} 27. Kxf3 {[%emt 0:00:03]} Kd7 {[%emt 0:00:10]} 28. h3 {[%emt 0:00:39]} Ne7 {[%emt 0:01:10]} 29. Ke2 {[%emt 0:02:42]} Nd5 {[%emt 0:00:17]} 30. Kd2 {[%emt 0:00:24]} Rh7 {[%emt 0:06:07]} 31. Rgf1 {[%emt 0:00:19]} Nb6 {[%emt 0:01:46]} 32. Ke2 {[%emt 0:03:18]} Rb8 {[%emt 0:03:09]} 33. Rf3 {[%emt 0:01:15]} Rd8 {[%emt 0:01:57]} 34. Raf1 {[%emt 0:01:21]} Na4 {[%emt 0:04:59]} 35. Bb4 {[%emt 0:02:40]} Kc8 {[%emt 0:01:25]} 36. g4 {[%emt 0:00:23]} hxg4 {[%emt 0:00:17]} 37. hxg4 {[%emt 0:00:03]} c5 {[%emt 0:01:56]} 38. Ba5 {[%emt 0:07:12]} Rd5 {[%emt 0:01:31]} 39. f5 {[%emt 0:00:04]} gxf5 {[%emt 0:00:31]} 40. gxf5 {[%emt 0:00:00]} cxd4 {[%emt 0:00:00]} 41. cxd4 {[%emt 0:02:51]} Rxd4 {[%emt 0:14:27]} 42. fxe6 {[%emt 0:01:05]} Re4+ {[%emt 0:00:13]} 43. Kf2 {[%emt 0:00:39]} f5 {[%emt 0:15:39]} 44. exf6 {[%emt 0:00:48]} Nc5 {[%emt 0:00:38]} 45. f7 {[%emt 0:00:08]} Nxe6 {[%emt 0:00:12]} 46. Rd1 {[%emt 0:00:16]} Rh2+ {[%emt 0:02:31]} 47. Kg1 {[%emt 0:00:25]} Rh8 {[%emt 0:00:51]} 48. f8=Q+ {[%emt 0:00:19]} Rxf8 {[%emt 0:00:06]} 49. Rxf8+ {[%emt 0:00:06]} Nxf8 {[%emt 0:00:03]} 50. Rd8# {[%emt 0:00:05]} 1-0

[Event "Cracovia Chess Festival A 2021"]
[Site "Cracow"]
[Date "2022.01.03"]
[Round "8.15"]
[White "Tsaknakis, Zisis"]
[Black "Karsay, Pascal"]
[Result "1-0"]
[ECO "C95"]
[WhiteElo "2202"]
[BlackElo "2322"]
[Annotator "ChessBase"]
[PlyCount "105"]
[EventDate "2021.12.27"]
[EventCountry "POL"]
[SourceTitle "playchess.com"]
[Source "ChessBase"]
[SourceQuality "1"]
[TimeControl "40/5400+30:1800+30"]

1. e4 {[%emt 0:05:18]} e5 {[%emt 0:00:07]} 2. Nf3 {[%emt 0:00:17]} Nc6 {[%emt 0:00:10]} 3. Bb5 {[%emt 0:00:02]} a6 {[%emt 0:00:09]} 4. Ba4 {[%emt 0:00:02]} Nf6 {[%emt 0:00:08]} 5. O-O {[%emt 0:00:03]} Be7 {[%emt 0:00:11]} 6. Re1 {[%emt 0:00:02]} b5 {[%emt 0:00:10]} 7. Bb3 {[%emt 0:00:02]} d6 {[%emt 0:00:11]} 8. c3 {[%emt 0:00:01]} O-O {[%emt 0:00:09]} 9. h3 {[%emt 0:00:03]} Nb8 {[%emt 0:00:08]} 10. d4 {[%emt 0:00:02]} Nbd7 {[%emt 0:00:09]} 11. Nbd2 {[%emt 0:00:04]} Bb7 {[%emt 0:00:08]} 12. Bc2 {[%emt 0:00:04]} c5 {[%emt 0:00:12]} 13. d5 {[%emt 0:00:43]} c4 {[%emt 0:00:12]} 14. Nf1 {[%emt 0:00:25]} Qc7 {[%emt 0:00:12]} 15. Ng3 {[%emt 0:03:50]} g6 {[%emt 0:00:07]} 16. Bd2 {[%emt 0:03:44]} Nc5 {[%emt 0:03:02]} 17. b4 {[%emt 0:00:39]} cxb3 {[%emt 0:17:37]} 18. axb3 {[%emt 0:00:25]} a5 {[%emt 0:00:54]} 19. b4 {[%emt 0:01:31]} axb4 {[%emt 0:03:14]} 20. cxb4 {[%emt 0:02:29]} Rxa1 {[%emt 0:00:07]} 21. Qxa1 {[%emt 0:00:04]} Ncxe4 {[%emt 0:09:01]} 22. Bxe4 {[%emt 0:12:54]} Nxe4 {[%emt 0:00:07]} 23. Nxe4 {[%emt 0:06:24]} Bxd5 {[%emt 0:00:07]} 24. Qc3 {[%emt 0:12:02]} Qb7 {[%emt 0:03:51]} 25. Qd3 {[%emt 0:04:51]} f6 {[%emt 0:09:00]} 26. Bh6 {[%emt 0:04:41]} Rd8 {[%emt 0:07:12]} 27. Nh4 {[%emt 0:11:29]} f5 {[%emt 0:18:01]} 28. Ng5 {[%emt 0:05:59]} Bc4 {[%emt 0:04:42]} 29. Qg3 {[%emt 0:02:42]} Qd7 {[%emt 0:01:02]} 30. f4 {[%emt 0:02:17]} Bf6 {[%emt 0:04:03]} 31. Ngf3 {[%emt 0:04:33]} Bf7 {[%emt 0:03:33]} 32. Bg5 {[%emt 0:01:45]} Bxg5 {[%emt 0:00:20]} 33. Qxg5 {[%emt 0:02:46]} Re8 {[%emt 0:01:09]} 34. Kh1 {[%emt 0:04:51]} exf4 {[%emt 0:05:30]} 35. Rxe8+ {[%emt 0:00:36]} Bxe8 {[%emt 0:00:28]} 36. Nd4 {[%emt 0:01:46]} Qg7 {[%emt 0:00:29]} 37. Qxf4 {[%emt 0:00:57]} g5 {[%emt 0:03:52]} 38. Qe3 {[%emt 0:00:32]} Bd7 {[%emt 0:01:18]} 39. Nhxf5 {[%emt 0:00:52]} Qf6 {[%emt 0:00:28]} 40. Qe4 {[%emt 0:00:00]} Qe5 {[%emt 0:00:00]} 41. Qa8+ {[%emt 0:05:22]} Kf7 {[%emt 0:02:25]} 42. Qa2+ {[%emt 0:02:21]} Kf6 {[%emt 0:01:01]} 43. Qf2 {[%emt 0:04:20]} Bxf5 {[%emt 0:07:06]} 44. g4 {[%emt 0:00:18]} Qe4+ {[%emt 0:00:02]} 45. Kg1 {[%emt 0:03:46]} Ke5 {[%emt 0:00:07]} 46. gxf5 {[%emt 0:03:19]} Kf6 {[%emt 0:00:01]} 47. Nxb5 {[%emt 0:00:47]} Qxb4 {[%emt 0:00:56]} 48. Qd4+ {[%emt 0:02:37]} Qxd4+ {[%emt 0:00:06]} 49. Nxd4 {[%emt 0:00:04]} h5 {[%emt 0:06:40]} 50. Kg2 {[%emt 0:00:30]} d5 {[%emt 0:04:33]} 51. Kf3 {[%emt 0:03:21]} Ke5 {[%emt 0:00:23]} 52. Kg3 {[%emt 0:00:10]} Kf6 {[%emt 0:00:22]} 53. h4 {[%emt 0:00:29]} 1-0

[Event "Cracovia Chess Festival A 2021"]
[Site "Cracow"]
[Date "2022.01.03"]
[Round "8.16"]
[White "Mis, Mieszko"]
[Black "Sharma Isha"]
[Result "1/2-1/2"]
[ECO "A45"]
[WhiteElo "2417"]
[BlackElo "2200"]
[Annotator "ChessBase"]
[PlyCount "89"]
[EventDate "2021.12.27"]
[EventCountry "POL"]
[SourceTitle "playchess.com"]
[Source "ChessBase"]
[SourceQuality "1"]
[TimeControl "40/5400+30:1800+30"]

1. d4 {[%emt 0:06:15]} Nf6 {[%emt 0:00:10]} 2. Bg5 {[%emt 0:02:01]} d5 {[%emt 0:00:17]} 3. e3 {[%emt 0:01:44]} c5 {[%emt 0:00:22]} 4. Bxf6 {[%emt 0:02:08]} gxf6 {[%emt 0:00:07]} 5. dxc5 {[%emt 0:01:01]} e6 {[%emt 0:04:45]} 6. Nc3 {[%emt 0:03:39]} Bxc5 {[%emt 0:01:12]} 7. Qh5 {[%emt 0:00:07]} f5 {[%emt 0:03:40]} 8. O-O-O {[%emt 0:03:52]} Qf6 {[%emt 0:00:41]} 9. Nge2 {[%emt 0:03:16]} Bd7 {[%emt 0:05:54]} 10. Nf4 {[%emt 0:09:16]} Bc6 {[%emt 0:02:15]} 11. Nfxd5 {[%emt 0:06:04]} exd5 {[%emt 0:03:21]} 12. Nxd5 {[%emt 0:00:04]} Bxd5 {[%emt 0:08:21]} 13. Rxd5 {[%emt 0:00:06]} Be7 {[%emt 0:01:52]} 14. Bc4 {[%emt 0:07:47]} Qg6 {[%emt 0:02:43]} 15. Qxf5 {[%emt 0:04:36]} O-O {[%emt 0:01:40]} 16. Qxg6+ {[%emt 0:03:39]} hxg6 {[%emt 0:00:06]} 17. Rb5 {[%emt 0:00:00]} Nc6 {[%emt 0:04:56]} 18. Rxb7 {[%emt 0:00:33]} Rab8 {[%emt 0:00:31]} 19. Rxb8 {[%emt 0:05:07]} Rxb8 {[%emt 0:00:08]} 20. Rd1 {[%emt 0:01:36]} Bf6 {[%emt 0:08:24]} 21. c3 {[%emt 0:00:56]} Kg7 {[%emt 0:00:26]} 22. h3 {[%emt 0:04:50]} Rc8 {[%emt 0:04:26]} 23. Bb3 {[%emt 0:01:08]} Rc7 {[%emt 0:00:17]} 24. a3 {[%emt 0:01:40]} Kf8 {[%emt 0:03:05]} 25. Kc2 {[%emt 0:03:28]} Ke7 {[%emt 0:00:23]} 26. Bd5 {[%emt 0:00:56]} Na5 {[%emt 0:01:38]} 27. Rd3 {[%emt 0:05:47]} Nc4 {[%emt 0:02:49]} 28. Bxc4 {[%emt 0:00:33]} Rxc4 {[%emt 0:00:03]} 29. Rd5 {[%emt 0:00:15]} Rc7 {[%emt 0:01:05]} 30. Ra5 {[%emt 0:02:58]} Kd7 {[%emt 0:04:53]} 31. e4 {[%emt 0:01:58]} Ke6 {[%emt 0:01:13]} 32. f4 {[%emt 0:01:47]} Bh4 {[%emt 0:01:01]} 33. Kd3 {[%emt 0:04:41]} Rd7+ {[%emt 0:01:41]} 34. Ke2 {[%emt 0:01:01]} Bg3 {[%emt 0:03:41]} 35. Ke3 {[%emt 0:01:07]} Rb7 {[%emt 0:02:32]} 36. b4 {[%emt 0:08:45]} Rc7 {[%emt 0:00:16]} 37. f5+ {[%emt 0:00:04]} gxf5 {[%emt 0:01:08]} 38. exf5+ {[%emt 0:00:08]} Kf6 {[%emt 0:00:04]} 39. Kd3 {[%emt 0:02:24]} Be5 {[%emt 0:01:40]} 40. c4 {[%emt 0:00:00]} Kxf5 {[%emt 0:00:00]} 41. c5 {[%emt 0:01:42]} f6 {[%emt 0:07:28]} 42. Ke3 {[%emt 0:08:13]} Ke6 {[%emt 0:04:37]} 43. Ke4 {[%emt 0:03:00]} f5+ {[%emt 0:00:40]} 44. Kf3 {[%emt 0:00:26]} Rh7 {[%emt 0:06:45]} 45. b5 {[%emt 0:07:04]} 1/2-1/2

[Event "Cracovia Chess Festival A 2021"]
[Site "Cracow"]
[Date "2022.01.03"]
[Round "8.17"]
[White "Godzwon, Iwo"]
[Black "Meurs, Tom"]
[Result "1/2-1/2"]
[ECO "C60"]
[WhiteElo "2352"]
[BlackElo "2208"]
[Annotator "ChessBase"]
[PlyCount "83"]
[EventDate "2021.12.27"]
[EventCountry "POL"]
[SourceTitle "playchess.com"]
[Source "ChessBase"]
[SourceQuality "1"]
[TimeControl "40/5400+30:1800+30"]

1. e4 {[%emt 0:00:02]} e5 {[%emt 0:00:06]} 2. Nf3 {[%emt 0:00:04]} Nc6 {[%emt 0:00:05]} 3. Bb5 {[%emt 0:00:03]} Nge7 {[%emt 0:00:19]} 4. Nc3 {[%emt 0:02:37]} Ng6 {[%emt 0:00:11]} 5. d4 {[%emt 0:19:28]} Nxd4 {[%emt 0:03:27]} 6. Nxd4 {[%emt 0:00:35]} exd4 {[%emt 0:00:05]} 7. Qxd4 {[%emt 0:00:04]} c6 {[%emt 0:00:06]} 8. Be2 {[%emt 0:05:26]} Qb6 {[%emt 0:00:58]} 9. Qd3 {[%emt 0:07:48]} Be7 {[%emt 0:02:55]} 10. O-O {[%emt 0:10:40]} O-O {[%emt 0:01:07]} 11. a3 {[%emt 0:03:43]} d6 {[%emt 0:09:58]} 12. Be3 {[%emt 0:00:10]} Qc7 {[%emt 0:01:06]} 13. Rad1 {[%emt 0:06:46]} Kh8 {[%emt 0:02:11]} 14. Qd2 {[%emt 0:11:43]} f5 {[%emt 0:06:36]} 15. f4 {[%emt 0:03:58]} fxe4 {[%emt 0:01:37]} 16. Nxe4 {[%emt 0:00:03]} d5 {[%emt 0:04:06]} 17. Ng3 {[%emt 0:00:04]} Bd6 {[%emt 0:03:13]} 18. Nh5 {[%emt 0:00:03]} Bf5 {[%emt 0:02:56]} 19. c4 {[%emt 0:04:13]} Be4 {[%emt 0:06:08]} 20. c5 {[%emt 0:00:40]} Be7 {[%emt 0:01:33]} 21. Bd4 {[%emt 0:01:33]} Rf7 {[%emt 0:02:25]} 22. Bg4 {[%emt 0:05:06]} Nf8 {[%emt 0:06:50]} 23. Qc3 {[%emt 0:02:19]} Bd8 {[%emt 0:06:27]} 24. f5 {[%emt 0:05:39]} Kg8 {[%emt 0:21:11]} 25. Be5 {[%emt 0:00:08]} Qd7 {[%emt 0:00:19]} 26. h3 {[%emt 0:00:23]} Bxf5 {[%emt 0:00:43]} 27. Rxf5 {[%emt 0:01:04]} Rxf5 {[%emt 0:00:05]} 28. Ng3 {[%emt 0:02:25]} Rxe5 {[%emt 0:06:06]} 29. Bxd7 {[%emt 0:00:38]} Nxd7 {[%emt 0:00:03]} 30. Rf1 {[%emt 0:01:51]} Bg5 {[%emt 0:01:01]} 31. Kh2 {[%emt 0:02:19]} Be3 {[%emt 0:02:26]} 32. b4 {[%emt 0:00:40]} Rae8 {[%emt 0:01:01]} 33. Nf5 {[%emt 0:00:20]} Bg5 {[%emt 0:02:00]} 34. Qg3 {[%emt 0:02:21]} Bf6 {[%emt 0:03:55]} 35. Qg4 {[%emt 0:00:45]} R5e6 {[%emt 0:01:51]} 36. Kg1 {[%emt 0:01:04]} Ne5 {[%emt 0:00:16]} 37. Qg3 {[%emt 0:00:04]} Nc4 {[%emt 0:01:15]} 38. Nh6+ {[%emt 0:01:23]} Kh8 {[%emt 0:00:04]} 39. Ng4 {[%emt 0:00:17]} Bd4+ {[%emt 0:00:33]} 40. Kh1 {[%emt 0:00:00]} Ne3 {[%emt 0:00:00]} 41. Nxe3 {[%emt 0:01:20]} Rxe3 {[%emt 0:10:52]} 42. Qc7 {[%emt 0:04:33]} 1/2-1/2

[Event "Cracovia Chess Festival A 2021"]
[Site "Cracow"]
[Date "2022.01.03"]
[Round "8.18"]
[White "Suder, Jakub"]
[Black "Stanisz, Patryk"]
[Result "1/2-1/2"]
[ECO "D10"]
[WhiteElo "2349"]
[BlackElo "2158"]
[Annotator "ChessBase"]
[PlyCount "51"]
[EventDate "2021.12.27"]
[EventCountry "POL"]
[SourceTitle "playchess.com"]
[Source "ChessBase"]
[SourceQuality "1"]
[TimeControl "40/5400+30:1800+30"]

1. d4 {[%emt 0:00:05]} d5 {[%emt 0:00:07]} 2. c4 {[%emt 0:00:05]} c6 {[%emt 0:00:10]} 3. cxd5 {[%emt 0:00:06]} cxd5 {[%emt 0:00:06]} 4. Bg5 {[%emt 0:00:07]} Qb6 {[%emt 0:00:35]} 5. Nc3 {[%emt 0:01:01]} Nc6 {[%emt 0:00:10]} 6. Qd2 {[%emt 0:02:08]} f6 {[%emt 0:00:33]} 7. Bf4 {[%emt 0:13:23]} Qxd4 {[%emt 0:03:30]} 8. Nxd5 {[%emt 0:03:30]} e5 {[%emt 0:00:20]} 9. Nf3 {[%emt 0:06:29]} Qxd2+ {[%emt 0:18:51]} 10. Bxd2 {[%emt 0:00:24]} Bd6 {[%emt 0:00:05]} 11. e4 {[%emt 0:04:25]} Nge7 {[%emt 0:05:38]} 12. Bc4 {[%emt 0:05:12]} Bg4 {[%emt 0:02:08]} 13. Bc3 {[%emt 0:04:29]} O-O-O 14. Rc1 {[%emt 0:06:11]} Kb8 {[%emt 0:05:56]} 15. a3 {[%emt 0:05:07]} Nxd5 {[%emt 0:06:40]} 16. Bxd5 {[%emt 0:00:36]} Ne7 {[%emt 0:00:17]} 17. Bb3 {[%emt 0:04:58]} Bxf3 {[%emt 0:04:19]} 18. gxf3 {[%emt 0:00:10]} g5 {[%emt 0:00:06]} 19. Ke2 {[%emt 0:03:58]} Bc7 20. Bd2 {[%emt 0:10:15]} Bb6 {[%emt 0:19:33]} 21. Be3 {[%emt 0:00:52]} Bd4 {[%emt 0:00:01]} 22. Rc2 {[%emt 0:00:48]} Ng6 {[%emt 0:09:08]} 23. Rhc1 {[%emt 0:02:10]} Nf4+ {[%emt 0:02:33]} 24. Bxf4 {[%emt 0:00:53]} exf4 {[%emt 0:00:06]} 25. Be6 {[%emt 0:02:16]} Be5 {[%emt 0:00:13]} 26. b3 {[%emt 0:01:09]} 1/2-1/2